[Event "BL 2016-17"]
[Site "Germany"]
[Date "2017.02.18"]
[Round "7"]
[White "Baldauf, Marco"]
[Black "Spitzl, Vinzent"]
[Result "1-0"]
[ECO "A13"]
[WhiteElo "2439"]
[BlackElo "2210"]
[Annotator "ChessBase"]
[PlyCount "91"]
[EventDate "2017.??.??"]
[EventType "team-tourn"]
[EventCountry "GER"]
[SourceTitle "playchess.com"]
[Source "ChessBase"]
[SourceQuality "1"]
[WhiteTeam "SF Berlin"]
[BlackTeam "Griesheim"]
[TimeControl "40/6000+30:3000+30"]

1. c4 {[%emt 0:00:00]} e6 {[%emt 0:00:09]} 2. g3 {[%emt 0:00:00]} d5 {[%emt 0:00:42]} 3. Bg2 {[%emt 0:00:00]} Nf6 {[%emt 0:00:10]} 4. Nf3 {[%emt 0:00:27]} Be7 {[%emt 0:01:05]} 5. d4 {[%emt 0:00:10]} O-O {[%emt 0:00:34]} 6. Qc2 {[%emt 0:00:17]} c5 {[%emt 0:05:30]} 7. O-O {[%emt 0:00:07]} cxd4 {[%emt 0:05:46]} 8. Nxd4 {[%emt 0:00:18]} Nc6 {[%emt 0:00:00]} 9. Nxc6 {[%emt 0:01:44]} bxc6 {[%emt 0:01:02]} 10. Rd1 {[%emt 0:00:08]} Ba6 {[%emt 0:06:05]} 11. b3 {[%emt 0:02:21]} Qb6 {[%emt 0:05:38]} 12. Be3 {[%emt 0:08:48]} Bc5 {[%emt 0:07:44]} 13. Bxc5 {[%emt 0:00:15]} Qxc5 {[%emt 0:00:02]} 14. Nd2 {[%emt 0:01:55]} Ng4 {[%emt 0:03:14]} 15. e3 {[%emt 0:03:11]} dxc4 {[%emt 0:04:08]} 16. bxc4 {[%emt 0:12:45]} Rab8 {[%emt 0:11:07]} 17. Qa4 {[%emt 0:06:59]} Qf5 {[%emt 0:09:08]} 18. Ne4 {[%emt 0:06:02]} Rb6 {[%emt 0:07:11]} 19. h3 {[%emt 0:41:55]} Nf6 {[%emt 0:11:57]} 20. g4 {[%emt 0:04:49]} Qe5 {[%emt 0:02:44]} 21. c5 {[%emt 0:03:01]} Bb5 {[%emt 0:02:48]} 22. Qd4 {[%emt 0:06:05]} Qxd4 {[%emt 0:00:19]} 23. Rxd4 {[%emt 0:00:05]} Rbb8 {[%emt 0:02:17]} 24. a4 {[%emt 0:03:59]} Nxe4 {[%emt 0:02:25]} 25. Bxe4 {[%emt 0:00:06]} Be2 {[%emt 0:00:49]} 26. Ra2 {[%emt 0:02:14]} Ba6 {[%emt 0:00:57]} 27. Rd7 {[%emt 0:00:08]} Bc4 {[%emt 0:02:00]} 28. Rad2 {[%emt 0:00:34]} Bd5 {[%emt 0:03:31]} 29. Bxd5 {[%emt 0:00:05]} cxd5 {[%emt 0:00:11]} 30. Rxa7 {[%emt 0:00:02]} Rfc8 {[%emt 0:00:17]} 31. Rc2 {[%emt 0:00:12]} Rc6 {[%emt 0:00:33]} 32. Kf1 {[%emt 0:02:06]} g5 {[%emt 0:02:00]} 33. Ke2 {[%emt 0:00:25]} Kg7 {[%emt 0:06:10]} 34. Ra5 {[%emt 0:00:21]} Rb4 {[%emt 0:00:37]} 35. Kd3 {[%emt 0:01:38]} h5 {[%emt 0:03:35]} 36. Kc3 {[%emt 0:00:29]} Rc4+ {[%emt 0:01:42]} 37. Kb2 {[%emt 0:02:13]} Re4 {[%emt 0:01:25]} 38. gxh5 {[%emt 0:00:04]} Kh6 {[%emt 0:02:12]} 39. Kb3 {[%emt 0:00:03]} d4 {[%emt 0:00:53]} 40. exd4 {[%emt 0:00:21]} Rxd4 {[%emt 0:50:12]} 41. Rb5 {[%emt 0:05:22]} Kxh5 {[%emt 0:00:00]} 42. Rb6 {[%emt 0:01:20]} Rc8 {[%emt 0:00:00]} 43. c6 {[%emt 0:00:48]} Rd1 {[%emt 0:00:00]} 44. a5 {[%emt 0:01:37]} Kh4 {[%emt 0:00:00]} 45. Rc3 {[%emt 0:01:15]} Rb1+ {[%emt 0:00:00]} 46. Ka4 {[%emt 0:01:45]} 1-0

[Event "BL 2016-17"]
[Site "Germany"]
[Date "2017.02.18"]
[Round "7"]
[White "Carlstedt, Jonathan"]
[Black "Belezky, Alexander"]
[Result "1/2-1/2"]
[ECO "E33"]
[WhiteElo "2424"]
[BlackElo "2397"]
[Annotator "ChessBase"]
[PlyCount "139"]
[EventDate "2017.??.??"]
[EventType "team-tourn"]
[EventCountry "GER"]
[SourceTitle "playchess.com"]
[Source "ChessBase"]
[SourceQuality "1"]
[WhiteTeam "Hamburger SK"]
[BlackTeam "Bayern München"]
[TimeControl "40/6000+30:3000+30"]

1. d4 {[%emt 0:00:00]} Nf6 {[%emt 0:00:05]} 2. c4 {[%emt 0:00:33]} e6 {[%emt 0:00:00]} 3. Nc3 {[%emt 0:00:55]} Bb4 {[%emt 0:00:00]} 4. Qc2 {[%emt 0:00:53]} Nc6 {[%emt 0:00:00]} 5. Nf3 {[%emt 0:01:19]} d6 {[%emt 0:00:30]} 6. Bd2 {[%emt 0:00:30]} O-O {[%emt 0:00:30]} 7. O-O-O {[%emt 0:00:30]} Qe7 {[%emt 0:00:30]} 8. e3 {[%emt 0:00:30]} a5 {[%emt 0:00:30]} 9. a3 {[%emt 0:00:30]} Bxc3 {[%emt 0:00:30]} 10. Bxc3 {[%emt 0:00:30]} e5 {[%emt 0:00:30]} 11. d5 {[%emt 0:00:30]} Nb8 {[%emt 0:00:30]} 12. Ng5 {[%emt 0:00:30]} Bg4 {[%emt 0:00:30]} 13. f3 {[%emt 0:00:30]} Bh5 {[%emt 0:00:30]} 14. Bd3 {[%emt 0:00:30]} Nxd5 {[%emt 0:18:37]} 15. Bxh7+ {[%emt 0:59:08]} Kh8 {[%emt 0:00:01]} 16. Rxd5 {[%emt 0:01:33]} Qxg5 {[%emt 0:00:28]} 17. f4 {[%emt 0:03:28]} Qh6 {[%emt 0:00:35]} 18. Bf5 {[%emt 0:01:47]} Nc6 {[%emt 0:05:16]} 19. Rb5 {[%emt 0:10:23]} exf4 {[%emt 0:04:49]} 20. exf4 {[%emt 0:00:44]} Qxf4+ {[%emt 0:00:36]} 21. Qd2 {[%emt 0:06:46]} Qxd2+ {[%emt 0:00:39]} 22. Kxd2 {[%emt 0:00:04]} Bg6 {[%emt 0:03:02]} 23. Bxg6 {[%emt 0:01:38]} fxg6 {[%emt 0:00:02]} 24. Rxb7 {[%emt 0:00:07]} Rf2+ {[%emt 0:02:59]} 25. Ke3 {[%emt 0:00:48]} Rf7 {[%emt 0:00:19]} 26. Re1 {[%emt 0:01:38]} a4 {[%emt 0:11:50]} 27. Kd3 {[%emt 0:00:45]} Rd8 {[%emt 0:00:11]} 28. Rb5 {[%emt 0:02:33]} Rf2 {[%emt 0:17:38]} 29. Re2 {[%emt 0:01:36]} Rf1 {[%emt 0:09:58]} 30. Rg5 {[%emt 0:02:02]} Kh7 {[%emt 0:01:30]} 31. Re6 {[%emt 0:04:42]} Ne5+ {[%emt 0:00:43]} 32. Ke2 {[%emt 0:01:00]} Rb1 {[%emt 0:03:09]} 33. c5 {[%emt 0:00:41]} Rd7 {[%emt 0:02:45]} 34. Re8 {[%emt 0:01:54]} Nf7 {[%emt 0:07:55]} 35. Rg3 {[%emt 0:01:44]} dxc5 {[%emt 0:01:05]} 36. Rge3 {[%emt 0:00:15]} Rc1 {[%emt 0:05:25]} 37. R8e7 {[%emt 0:02:31]} Rc2+ {[%emt 0:02:01]} 38. Kf3 {[%emt 0:00:15]} Rd1 {[%emt 0:00:16]} 39. Kg3 {[%emt 0:01:06]} Nd6 {[%emt 0:00:50]} 40. Kg4 {[%emt 0:02:09]} Nf5 {[%emt 0:53:28]} 41. Rh3+ {[%emt 0:03:46]} Kg8 {[%emt 0:00:00]} 42. Re8+ {[%emt 0:00:44]} Kf7 {[%emt 0:00:00]} 43. Rhh8 {[%emt 0:00:28]} Nh6+ {[%emt 0:00:00]} 44. Kh4 {[%emt 0:04:21]} Nf5+ {[%emt 0:00:00]} 45. Kh3 {[%emt 0:01:08]} Rd3+ {[%emt 0:00:00]} 46. g3 {[%emt 0:00:33]} Ne7 {[%emt 0:00:00]} 47. Rhf8+ {[%emt 0:01:40]} Ke6 {[%emt 0:00:00]} 48. Bxg7 {[%emt 0:01:37]} Re3 {[%emt 0:00:00]} 49. Rd8 {[%emt 0:03:27]} Nf5 {[%emt 0:00:00]} 50. Rfe8+ {[%emt 0:06:19]} Kf7 {[%emt 0:00:00]} 51. Rxe3 {[%emt 0:00:08]} Nxe3 {[%emt 0:00:00]} 52. Rd7+ {[%emt 0:00:14]} Ke6 {[%emt 0:00:00]} 53. Rxc7 {[%emt 0:01:02]} g5 {[%emt 0:00:00]} 54. Bc3 {[%emt 0:02:24]} g4+ {[%emt 0:00:00]} 55. Kh4 {[%emt 0:00:04]} Rxh2+ {[%emt 0:00:00]} 56. Kg5 {[%emt 0:00:05]} Rg2 {[%emt 0:00:00]} 57. Rxc5 {[%emt 0:01:51]} Rxg3 {[%emt 0:00:00]} 58. Kf4 {[%emt 0:00:36]} Rf3+ {[%emt 0:00:00]} 59. Ke4 {[%emt 0:02:45]} Nd1 {[%emt 0:00:00]} 60. Bd4 {[%emt 0:03:18]} Nf2+ {[%emt 0:00:00]} 61. Bxf2 {[%emt 0:00:49]} Rxf2 {[%emt 0:00:00]} 62. Rg5 {[%emt 0:00:22]} Rxb2 {[%emt 0:00:00]} 63. Rxg4 {[%emt 0:00:06]} Rb3 {[%emt 0:00:00]} 64. Kd4 {[%emt 0:00:09]} Rxa3 {[%emt 0:00:00]} 65. Kc4 {[%emt 0:00:08]} Ra1 {[%emt 0:00:00]} 66. Rg6+ {[%emt 0:00:32]} Ke5 {[%emt 0:00:00]} 67. Ra6 {[%emt 0:00:09]} a3 {[%emt 0:00:00]} 68. Kb3 {[%emt 0:00:08]} Kd4 {[%emt 0:00:00]} 69. Rxa3 {[%emt 0:00:08]} Rxa3+ {[%emt 0:00:00]} 70. Kxa3 1/2-1/2

[Event "BL 2016-17"]
[Site "Germany"]
[Date "2017.02.18"]
[Round "7"]
[White "Zwirs, Nico"]
[Black "Womacka, Mathias"]
[Result "0-1"]
[ECO "A46"]
[WhiteElo "2402"]
[BlackElo "2427"]
[Annotator "RC"]
[PlyCount "110"]
[EventDate "2017.??.??"]
[EventType "team-tourn"]
[EventCountry "GER"]
[SourceTitle "playchess.com"]
[Source "ChessBase"]
[SourceQuality "1"]
[WhiteTeam "Mülheim Nord"]
[BlackTeam "Schwäbisch Hall"]
[TimeControl "40/6000+30:3000+30"]

1. d4 {[%emt 0:00:00]} Nf6 {[%emt 0:00:05]} 2. Nf3 {[%emt 0:00:00]} e6 {[%emt 0:00:14]} 3. e3 {[%emt 0:00:00]} c5 {[%emt 0:01:35]} 4. c4 {[%emt 0:00:20]} d5 {[%emt 0:02:13]} 5. Nc3 {[%emt 0:00:08]} Nc6 {[%emt 0:00:15]} 6. a3 {[%emt 0:01:20]} Ne4 {[%emt 0:02:18]} 7. Bd3 {[%emt 0:05:30]} Nxc3 {[%emt 0:00:37]} 8. bxc3 {[%emt 0:00:03]} Be7 {[%emt 0:00:28]} 9. O-O {[%emt 0:02:08]} O-O {[%emt 0:00:48]} 10. e4 {[%emt 0:12:13]} dxe4 {[%emt 0:24:46]} 11. Bxe4 {[%emt 0:00:07]} Na5 {[%emt 0:08:44]} 12. Bc2 {[%emt 0:34:21]} Bf6 {[%emt 0:37:42]} 13. Qe2 {[%emt 0:08:31]} cxd4 {[%emt 0:02:23]} 14. cxd4 {[%emt 0:00:54]} Bd7 {[%emt 0:00:32]} 15. Bf4 {[%emt 0:03:02]} Rc8 {[%emt 0:05:17]} 16. c5 {[%emt 0:04:34]} Bc6 {[%emt 0:01:10]} 17. Rad1 {[%emt 0:17:50]} Qd5 {[%emt 0:00:10]} 18. Rfe1 {[%emt 0:02:06]} b6 {[%emt 0:01:07]} 19. Qd2 {[%emt 0:04:53]} Rfd8 {[%emt 0:01:51]} 20. Be5 {[%emt 0:04:26]} Be7 {[%emt 0:04:04]} 21. Qf4 {[%emt 0:02:08]} f6 {[%emt 0:04:50]} 22. Qh4 {[%emt 0:00:03]} h6 {[%emt 0:00:07]} 23. Bf4 {[%emt 0:02:04]} Qd7 {[%emt 0:05:03]} 24. Qg3 {[%emt 0:00:53]} Bxf3 {[%emt 0:00:38]} 25. Bxh6 {[%emt 0:01:42]} Bxc5 {[%emt 0:02:48]} 26. gxf3 {[%emt 0:01:12]} Bd6 {[%emt 0:00:35]} 27. Qg6 {[%emt 0:00:41]} Rxc2 {[%emt 0:00:11]} 28. Qxc2 {[%emt 0:00:22]} gxh6 {[%emt 0:00:04]} 29. Kh1 {[%emt 0:00:09]} f5 {[%emt 0:00:35]} 30. Re2 {[%emt 0:01:22]} Bf4 {[%emt 0:01:24]} 31. d5 {[%emt 0:01:42]} e5 {[%emt 0:00:13]} 32. Qd3 {[%emt 0:00:28]} Nb7 {[%emt 0:00:51]} 33. Ree1 {[%emt 0:00:30]} Nc5 {[%emt 0:00:28]} 34. Qc2 {[%emt 0:00:01]} Kh7 {[%emt 0:02:00]} 35. Rg1 {[%emt 0:00:02]} Rg8 {[%emt 0:00:29]} 36. Rxg8 {[%emt 0:00:23]} Kxg8 {[%emt 0:00:01]} 37. a4 {[%emt 0:00:22]} Qf7 {[%emt 0:01:21]} 38. d6 {[%emt 0:01:10]} Qh5 {[%emt 0:00:41]} 39. Rg1+ {[%emt 0:00:23]} Kf7 {[%emt 0:00:36]} 40. Qc4+ {[%emt 0:01:12]} Kf6 {[%emt 0:50:23]} 41. Rg2 {[%emt 0:01:18]} Qf7 {[%emt 0:00:00]} 42. Qb5 {[%emt 0:08:09]} Qd7 {[%emt 0:00:00]} 43. Qc4 {[%emt 0:00:58]} Qxd6 {[%emt 0:00:00]} 44. Qg8 {[%emt 0:00:20]} Qd1+ 45. Rg1 Qxf3+ {[%emt 0:00:00]} 46. Rg2 {[%emt 0:00:04]} Qd1+ {[%emt 0:00:00]} 47. Rg1 {[%emt 0:00:02]} Qf3+ {[%emt 0:00:00]} 48. Rg2 {[%emt 0:00:01]} Ne4 {[%emt 0:00:00]} 49. Qd8+ {[%emt 0:04:35]} Ke6 {[%emt 0:00:00]} 50. Kg1 {[%emt 0:00:44]} Bg5 {[%emt 0:00:00]} 51. Qc8+ {[%emt 0:02:38]} Kd6 {[%emt 0:00:00]} 52. Qb8+ {[%emt 0:02:32]} Kd5 {[%emt 0:00:00]} 53. Qb7+ {[%emt 0:00:52]} Kc5 {[%emt 0:00:00]} 54. Qc7+ {[%emt 0:00:44]} Kb4 {[%emt 0:00:00]} 55. Qc2 {[%emt 0:00:29]} Qb3 {[%emt 0:00:00]} 0-1

[Event "BL 2016-17"]
[Site "St. Veit/Glan"]
[Date "2017.03.25"]
[Round "7"]
[White "Koop, Thorben"]
[Black "Vlcek, Stanislav"]
[Result "1-0"]
[ECO "A49"]
[WhiteElo "2400"]
[BlackElo "2275"]
[Annotator "NA"]
[PlyCount "87"]
[EventDate "2017.??.??"]
[EventType "team-tourn"]
[EventCountry "AUT"]
[SourceTitle "playchess.com"]
[Source "ChessBase"]
[SourceQuality "1"]
[WhiteTeam "St. Veit"]
[BlackTeam "Nickelsdorf"]
[TimeControl "40/5400+30:1800+30"]

1. d4 {[%emt 0:00:00]} Nf6 {[%emt 0:00:12]} 2. Nf3 {[%emt 0:00:00]} g6 {[%emt 0:00:08]} 3. g3 {[%emt 0:00:04]} Bg7 {[%emt 0:00:09]} 4. Bg2 {[%emt 0:00:09]} O-O {[%emt 0:00:08]} 5. O-O {[%emt 0:00:48]} c6 {[%emt 0:01:52]} 6. c4 {[%emt 0:08:15]} d6 {[%emt 0:01:16]} 7. Nc3 {[%emt 0:02:03]} Nbd7 {[%emt 0:01:02]} 8. Bf4 {[%emt 0:06:42]} Nh5 {[%emt 0:01:43]} 9. Be3 {[%emt 0:02:38]} e5 {[%emt 0:02:10]} 10. dxe5 {[%emt 0:09:34]} Nxe5 {[%emt 0:05:05]} 11. Nxe5 {[%emt 0:06:34]} dxe5 {[%emt 0:00:40]} 12. Bc5 {[%emt 0:02:44]} Re8 {[%emt 0:08:29]} 13. Qb3 $11 {[%emt 0:09:47]} Nf6 {[%emt 0:05:06]} 14. Rfd1 {[%emt 0:02:20]} Qa5 {[%emt 0:02:09]} 15. Bd6 {[%emt 0:07:43]} Bf8 {[%emt 0:15:56]} 16. c5 {[%emt 0:05:35]} Kg7 {[%emt 0:06:58]} 17. a3 {[%emt 0:07:51]} Bxd6 {[%emt 0:10:50]} 18. cxd6 {[%emt 0:00:08]} Qb6 {[%emt 0:00:36]} 19. Qc2 {[%emt 0:02:30]} Bf5 {[%emt 0:01:45]} 20. e4 {[%emt 0:03:07]} Bg4 {[%emt 0:01:09]} 21. Rd2 {[%emt 0:01:13]} Nd7 {[%emt 0:00:50]} 22. Na4 {[%emt 0:00:53]} Qd8 {[%emt 0:00:35]} 23. b4 {[%emt 0:01:17]} Rb8 {[%emt 0:07:03]} 24. Qc3 {[%emt 0:01:46]} Qf6 {[%emt 0:03:43]} 25. Rc1 {[%emt 0:02:57]} Nf8 {[%emt 0:03:19]} 26. h3 {[%emt 0:00:51]} Bd7 {[%emt 0:01:11]} 27. Nc5 {[%emt 0:01:34]} Red8 {[%emt 0:07:16]} 28. f4 {[%emt 0:00:44]} Re8 {[%emt 0:01:08]} 29. Rf1 {[%emt 0:01:25]} exf4 {[%emt 0:02:00]} 30. Qxf6+ {[%emt 0:00:15]} Kxf6 {[%emt 0:00:22]} 31. Rxf4+ {[%emt 0:02:06]} Kg7 {[%emt 0:00:17]} 32. Rdf2 {[%emt 0:01:52]} f5 {[%emt 0:00:34]} 33. g4 {[%emt 0:01:06]} g5 {[%emt 0:02:22]} 34. Nxd7 {[%emt 0:00:37]} gxf4 {[%emt 0:00:04]} 35. Nxb8 {[%emt 0:00:28]} fxe4 {[%emt 0:01:55]} 36. Rxf4 {[%emt 0:00:42]} Rxb8 {[%emt 0:01:02]} 37. Rxe4 {[%emt 0:00:54]} Rd8 {[%emt 0:01:50]} 38. Re7+ {[%emt 0:00:22]} Kf6 {[%emt 0:00:10]} 39. Rxb7 {[%emt 0:00:34]} Rxd6 {[%emt 0:00:05]} 40. Rxa7 {[%emt 0:00:00]} Rd1+ {[%emt 0:02:45]} 41. Kf2 {[%emt 0:01:57]} Rd2+ {[%emt 0:00:55]} 42. Kf1 {[%emt 0:02:12]} Rd1+ {[%emt 0:00:40]} 43. Ke2 {[%emt 0:00:28]} Rc1 {[%emt 0:00:06]} 44. Kd2 1-0

[Event "BL 2016-17"]
[Site "Germany"]
[Date "2017.02.18"]
[Round "7"]
[White "Zeller, Frank"]
[Black "Buckels, Valentin"]
[Result "0-1"]
[ECO "C84"]
[WhiteElo "2393"]
[BlackElo "2300"]
[Annotator "RC"]
[PlyCount "76"]
[EventDate "2017.??.??"]
[EventType "team-tourn"]
[EventCountry "GER"]
[SourceTitle "playchess.com"]
[Source "ChessBase"]
[SourceQuality "1"]
[WhiteTeam "Schwäbisch Hall"]
[BlackTeam "Mülheim Nord"]
[TimeControl "40/6000+30:3000+30"]

1. e4 {[%emt 0:00:00]} e5 {[%emt 0:00:08]} 2. Nf3 {[%emt 0:00:00]} Nc6 {[%emt 0:00:05]} 3. Bb5 {[%emt 0:00:09]} a6 {[%emt 0:00:06]} 4. Ba4 {[%emt 0:00:09]} Nf6 {[%emt 0:00:05]} 5. O-O {[%emt 0:00:15]} Be7 {[%emt 0:00:05]} 6. d3 {[%emt 0:01:14]} b5 {[%emt 0:00:30]} 7. Bb3 {[%emt 0:00:11]} d6 {[%emt 0:00:11]} 8. c3 {[%emt 0:01:05]} O-O {[%emt 0:01:30]} 9. Nbd2 {[%emt 0:00:16]} Na5 {[%emt 0:07:26]} 10. Bc2 {[%emt 0:01:37]} c5 {[%emt 0:01:09]} 11. d4 {[%emt 0:10:17]} cxd4 {[%emt 0:09:51]} 12. cxd4 {[%emt 0:00:04]} Nc6 {[%emt 0:00:40]} 13. d5 {[%emt 0:11:20]} Nb4 {[%emt 0:05:31]} 14. Bb1 {[%emt 0:00:15]} a5 {[%emt 0:00:31]} 15. a3 {[%emt 0:11:51]} Na6 {[%emt 0:00:22]} 16. b4 {[%emt 0:02:11]} Bg4 {[%emt 0:02:59]} 17. Qb3 {[%emt 0:11:24]} Qd7 {[%emt 0:05:08]} 18. Bd3 {[%emt 0:17:01]} axb4 {[%emt 0:05:28]} 19. axb4 {[%emt 0:00:09]} Nc5 {[%emt 0:05:32]} 20. bxc5 {[%emt 0:00:16]} Rxa1 {[%emt 0:00:22]} 21. c6 {[%emt 0:00:17]} Qa7 {[%emt 0:02:45]} 22. Bxb5 {[%emt 0:22:23]} Rb8 {[%emt 0:07:24]} 23. Qd3 {[%emt 0:01:56]} Ra5 {[%emt 0:08:07]} 24. Bc4 {[%emt 0:00:26]} Ra4 {[%emt 0:05:24]} 25. Bb3 {[%emt 0:07:45]} Rab4 {[%emt 0:04:29]} 26. Bc2 {[%emt 0:00:15]} Bc8 {[%emt 0:06:35]} 27. Qe2 {[%emt 0:07:08]} Bd8 {[%emt 0:08:43]} 28. Nc4 {[%emt 0:01:34]} Qa2 {[%emt 0:10:03]} 29. Nxd6 {[%emt 0:02:01]} Ba6 {[%emt 0:00:29]} 30. Qd1 {[%emt 0:00:01]} Bxf1 {[%emt 0:02:52]} 31. Kxf1 {[%emt 0:00:01]} Bc7 {[%emt 0:03:28]} 32. Nb7 {[%emt 0:00:42]} Nxe4 {[%emt 0:02:17]} 33. d6 {[%emt 0:01:01]} Nxd6 {[%emt 0:02:20]} 34. Nxd6 {[%emt 0:00:48]} Bxd6 {[%emt 0:01:06]} 35. Ng5 {[%emt 0:00:49]} g6 {[%emt 0:01:34]} 36. Ne4 {[%emt 0:00:31]} Be7 {[%emt 0:00:58]} 37. Kg1 {[%emt 0:00:20]} Rd4 {[%emt 0:00:33]} 38. Qe2 {[%emt 0:00:47]} Qc4 {[%emt 0:00:55]} 0-1

[Event "BL 2016-17"]
[Site "St. Veit/Glan"]
[Date "2017.03.25"]
[Round "7"]
[White "Mesaros, Florian"]
[Black "Lehner, Oliver"]
[Result "0-1"]
[ECO "E94"]
[WhiteElo "2382"]
[BlackElo "2386"]
[Annotator "NA"]
[PlyCount "100"]
[EventDate "2017.??.??"]
[EventType "team-tourn"]
[EventCountry "AUT"]
[SourceTitle "playchess.com"]
[Source "ChessBase"]
[SourceQuality "1"]
[WhiteTeam "Wulkaprodersdorf"]
[BlackTeam "Jenbach"]
[TimeControl "40/5400+30:1800+30"]

1. Nf3 {[%emt 0:00:00]} Nf6 {[%emt 0:00:06]} 2. c4 {[%emt 0:00:00]} g6 {[%emt 0:00:04]} 3. Nc3 {[%emt 0:00:00]} Bg7 {[%emt 0:00:03]} 4. e4 {[%emt 0:00:00]} d6 {[%emt 0:00:05]} 5. d4 {[%emt 0:00:00]} O-O {[%emt 0:00:05]} 6. Be2 {[%emt 0:00:00]} e5 {[%emt 0:00:09]} 7. O-O {[%emt 0:00:13]} Na6 {[%emt 0:00:19]} 8. Be3 {[%emt 0:00:42]} c6 {[%emt 0:00:28]} 9. d5 {[%emt 0:01:09]} Ng4 {[%emt 0:00:16]} 10. Bg5 {[%emt 0:06:50]} f6 {[%emt 0:00:22]} 11. Bh4 {[%emt 0:06:25]} c5 {[%emt 0:01:14]} 12. Nd2 {[%emt 0:10:44]} h5 {[%emt 0:03:59]} 13. a3 {[%emt 0:01:28]} Nh6 $16 {[%emt 0:04:30]} 14. f3 {[%emt 0:04:25]} Nf7 {[%emt 0:00:47]} 15. Rb1 {[%emt 0:01:22]} Bh6 {[%emt 0:02:08]} 16. Bf2 {[%emt 0:02:35]} Bd7 {[%emt 0:09:34]} 17. b4 {[%emt 0:02:11]} b6 {[%emt 0:00:13]} 18. Rb2 {[%emt 0:16:51]} Bg5 {[%emt 0:09:21]} 19. Qc2 {[%emt 0:01:50]} h4 {[%emt 0:07:52]} 20. b5 {[%emt 0:04:46]} Nc7 {[%emt 0:00:57]} 21. a4 {[%emt 0:00:23]} Ne8 {[%emt 0:10:28]} 22. Ra1 {[%emt 0:01:49]} f5 {[%emt 0:06:45]} 23. exf5 {[%emt 0:03:05]} gxf5 {[%emt 0:00:09]} 24. a5 {[%emt 0:03:29]} Rb8 {[%emt 0:04:59]} 25. axb6 {[%emt 0:01:42]} axb6 {[%emt 0:00:48]} 26. Bd3 {[%emt 0:06:01]} Nh6 {[%emt 0:01:28]} 27. Rba2 {[%emt 0:03:35]} Rf7 {[%emt 0:04:04]} 28. Ra7 {[%emt 0:01:44]} Rg7 {[%emt 0:01:36]} 29. Bf1 {[%emt 0:02:40]} Nf6 {[%emt 0:04:14]} 30. R1a6 {[%emt 0:01:29]} e4 {[%emt 0:07:29]} 31. Nd1 {[%emt 0:06:26]} Qe8 {[%emt 0:06:05]} 32. fxe4 {[%emt 0:01:08]} fxe4 {[%emt 0:02:08]} 33. Ne3 {[%emt 0:01:42]} Qe5 {[%emt 0:00:55]} 34. Ra8 {[%emt 0:05:12]} Rxa8 {[%emt 0:00:17]} 35. Rxa8+ {[%emt 0:00:01]} Kf7 {[%emt 0:00:11]} 36. Be2 {[%emt 0:00:31]} Bxe3 {[%emt 0:03:35]} 37. Bxe3 {[%emt 0:00:32]} h3 {[%emt 0:01:34]} 38. Nf1 {[%emt 0:05:03]} Rxg2+ {[%emt 0:00:19]} 39. Kh1 {[%emt 0:00:00]} Nhg4 {[%emt 0:00:37]} 40. Bg1 {[%emt 0:00:00]} Rxg1+ {[%emt 0:02:59]} 41. Kxg1 {[%emt 0:01:00]} Qd4+ {[%emt 0:00:07]} 42. Kh1 {[%emt 0:00:10]} Qf2 {[%emt 0:00:42]} 43. Bd3 {[%emt 0:01:25]} Qf3+ {[%emt 0:00:54]} 44. Kg1 {[%emt 0:00:08]} exd3 {[%emt 0:00:06]} 45. Qb2 {[%emt 0:00:46]} Bf5 {[%emt 0:02:51]} 46. Ra7+ {[%emt 0:01:05]} Kg6 {[%emt 0:00:07]} 47. Ng3 {[%emt 0:00:09]} Qe3+ {[%emt 0:00:15]} 48. Kf1 {[%emt 0:00:05]} Be4 {[%emt 0:02:11]} 49. Rg7+ {[%emt 0:01:07]} Kh6 {[%emt 0:03:58]} 50. Nxe4 {[%emt 0:07:51]} Kxg7 {[%emt 0:04:31]} 0-1

[Event "BL 2016-17"]
[Site "St. Veit/Glan"]
[Date "2017.03.25"]
[Round "7"]
[White "Handler, Lukas"]
[Black "Anistratov, Dmitriy"]
[Result "1-0"]
[ECO "A10"]
[WhiteElo "2377"]
[BlackElo "2292"]
[Annotator "NA"]
[PlyCount "93"]
[EventDate "2017.??.??"]
[EventType "team-tourn"]
[EventCountry "AUT"]
[SourceTitle "playchess.com"]
[Source "ChessBase"]
[SourceQuality "1"]
[WhiteTeam "Maria Saal"]
[BlackTeam "Götzis"]
[TimeControl "40/5400+30:1800+30"]

1. c4 {[%emt 0:00:00]} d6 {[%emt 0:00:30]} 2. g3 {[%emt 0:00:14]} Nf6 {[%emt 0:00:36]} 3. Bg2 {[%emt 0:00:20]} c6 {[%emt 0:00:30]} 4. Nc3 {[%emt 0:01:37]} e5 {[%emt 0:00:24]} 5. d4 {[%emt 0:00:21]} Be7 {[%emt 0:00:29]} 6. e4 {[%emt 0:06:28]} O-O {[%emt 0:02:18]} 7. Nge2 {[%emt 0:00:45]} a6 {[%emt 0:10:24]} 8. O-O {[%emt 0:10:15]} Nbd7 {[%emt 0:06:37]} 9. f4 {[%emt 0:03:21]} Re8 {[%emt 0:03:00]} 10. Kh1 {[%emt 0:07:37]} Bf8 {[%emt 0:03:46]} 11. Qc2 {[%emt 0:09:34]} b6 {[%emt 0:19:38]} 12. d5 {[%emt 0:17:17]} cxd5 {[%emt 0:03:32]} 13. cxd5 {[%emt 0:01:59]} b5 {[%emt 0:02:39]} 14. f5 {[%emt 0:04:03]} Qc7 {[%emt 0:04:31]} 15. Qd1 {[%emt 0:04:27]} Nb6 {[%emt 0:08:22]} 16. Bg5 {[%emt 0:04:06]} Be7 {[%emt 0:00:22]} 17. Rc1 {[%emt 0:04:09]} Qb7 {[%emt 0:02:42]} 18. Qd3 {[%emt 0:06:01]} Bd7 {[%emt 0:02:18]} 19. b3 {[%emt 0:03:46]} b4 {[%emt 0:03:17]} 20. Nd1 {[%emt 0:01:05]} Bb5 {[%emt 0:01:35]} 21. Qd2 {[%emt 0:01:00]} Rec8 {[%emt 0:08:53]} 22. Nf2 {[%emt 0:05:16]} a5 {[%emt 0:01:32]} 23. Bf3 {[%emt 0:01:06]} Nbd7 {[%emt 0:01:20]} 24. Be3 {[%emt 0:00:43]} Rxc1 {[%emt 0:06:10]} 25. Rxc1 {[%emt 0:00:11]} Rc8 {[%emt 0:00:11]} 26. g4 {[%emt 0:01:34]} Rxc1+ {[%emt 0:02:40]} 27. Qxc1 {[%emt 0:00:15]} Ne8 {[%emt 0:01:00]} 28. g5 {[%emt 0:00:42]} Bd8 {[%emt 0:00:32]} 29. Kg2 {[%emt 0:02:47]} Bb6 {[%emt 0:00:15]} 30. Bxb6 {[%emt 0:00:42]} Nxb6 {[%emt 0:00:38]} 31. Ng3 {[%emt 0:00:38]} Nd7 {[%emt 0:00:41]} 32. h4 {[%emt 0:00:57]} Nc5 {[%emt 0:00:35]} 33. f6 {[%emt 0:01:12]} a4 {[%emt 0:02:53]} 34. bxa4 {[%emt 0:01:10]} Bxa4 {[%emt 0:00:02]} 35. Nf5 {[%emt 0:00:18]} Bd7 {[%emt 0:01:42]} 36. Nxd6 {[%emt 0:00:30]} Nxd6 {[%emt 0:00:59]} 37. Qxc5 {[%emt 0:00:08]} Qb8 {[%emt 0:00:46]} 38. fxg7 {[%emt 0:01:04]} Kxg7 {[%emt 0:00:23]} 39. Nd3 {[%emt 0:00:29]} Nb5 {[%emt 0:00:41]} 40. Qe7 {[%emt 0:00:00]} Qc7 {[%emt 0:00:22]} 41. Qxe5+ {[%emt 0:02:08]} Qxe5 {[%emt 0:00:24]} 42. Nxe5 {[%emt 0:00:07]} Bc8 {[%emt 0:01:58]} 43. Nd3 {[%emt 0:02:26]} f6 {[%emt 0:02:35]} 44. Kg3 {[%emt 0:02:44]} fxg5 {[%emt 0:00:26]} 45. hxg5 {[%emt 0:00:06]} Kg6 {[%emt 0:00:29]} 46. Kf4 {[%emt 0:00:24]} Nd4 {[%emt 0:00:38]} 47. Bd1 {[%emt 0:01:50]} 1-0